[Event "FIDE World Cup O10-B 2024"]
[Site "Batumi"]
[Date "2024.06.24"]
[Round "2.3"]
[White "Akramov, Khasan"]
[Black "Zhauynbay, Alimzhan"]
[Result "1-0"]
[ECO "A36"]
[WhiteElo "1718"]
[BlackElo "1903"]
[Annotator "NA RC"]
[PlyCount "91"]
[EventDate "2024.06.23"]
[EventType "swiss"]
[EventCountry "GEO"]
[SourceTitle "playchess.com"]
[Source "ChessBase"]
[SourceQuality "1"]
[TimeControl "5400+30"]

1. c4 {[%emt 0:00:02]} g6 {[%emt 0:00:05]} 2. g3 {[%emt 0:00:05]} Bg7 {[%emt 0:00:06]} 3. Bg2 {[%emt 0:00:04]} Nf6 {[%emt 0:00:08]} 4. Nc3 {[%emt 0:00:05]} O-O {[%emt 0:00:12]} 5. d3 {[%emt 0:00:10]} c5 {[%emt 0:01:06]} 6. e4 {[%emt 0:00:05]} Nc6 {[%emt 0:00:08]} 7. Nge2 {[%emt 0:00:05]} d6 {[%emt 0:00:06]} 8. O-O {[%emt 0:00:06]} Rb8 {[%emt 0:00:20]} 9. h3 {[%emt 0:00:15]} a6 {[%emt 0:00:31]} 10. f4 {[%emt 0:00:13]} e6 {[%emt 0:07:38] 10...Ne8 is a critical line. A36: Symmetrical English vs ...g6: 4 Bg2 Bg7.} 11. Be3 {[%emt 0:00:25]} Qc7 {[%emt 0:01:58]} 12. d4 {[%emt 0:06:36]} cxd4 {[%emt 0:01:38]} 13. Nxd4 {[%emt 0:00:05]} Nxd4 {[%emt 0:01:29]} 14. Bxd4 {[%emt 1:29:14]} e5 $146 {[%emt 1:22:05]} ({Predecessor:} 14... Qxc4 15. Bxf6 Qc5+ 16. Qd4 Qxd4+ 17. Bxd4 Bxd4+ 18. Kh2 Bxc3 19. bxc3 b5 20. Rfd1 Rb6 {0-1 Staloch,S-Kanzler,K Lages JASC (Women) 2002 (2)}) 15. Be3 {[%emt 0:00:30]} Nh5 $2 {[%emt 0:00:00]} (15... Be6 $11) 16. f5 {[%emt 0:00:00]} Nxg3 {[%emt 0:00:00] [#]} 17. Rf3 {[%emt 0:00:00]} (17. Nd5 $1 $18 {[%cal Rd5c7]} Nxf1 18. Qxf1 (18. Nxc7 Nxe3 19. Qxd6 Nxc4 $18)) 17... Nxf5 {[%emt 0:00:00]} 18. exf5 {[%emt 0:00:00]} Bxf5 {[%emt 0:00:00]} 19. Nd5 {[%emt 0:00:00]} Qd7 {[%emt 0:00:00]} 20. Qd2 {[%emt 0:00:00]} f6 {[%emt 0:00:00] [#]} 21. Raf1 $1 {[%emt 0:00:00]} Kh8 {[%emt 0:00:00]} 22. Bh6 {[%emt 0:00:00]} b5 {[%emt 0:00:00]} 23. Bxg7+ {[%emt 0:00:00]} Kxg7 {[%emt 0:00:00]} 24. Qf2 {[%emt 0:00:00]} ({White should try} 24. cxb5 Qxb5 25. R1f2) 24... bxc4 {[%emt 0:00:00]} 25. Qg3 {[%emt 0:00:00]} ({White should try} 25. Rc3 $14) 25... Kh8 {[%emt 0:00:00]} 26. Qh4 {[%emt 0:00:00]} Rxb2 {[%emt 0:00:00]} 27. Ne3 {[%emt 0:00:00]} (27. Nxf6 $2 {is the wrong capture.} Qe7 28. Qxc4 Qa7+ (28... Rxf6 $2 29. Qxa6 e4 30. Rb3 $19) (28... Qxf6 $2 29. R3f2 $19) 29. Kh1 Rxf6 $19) (27. Qxc4 $11 {and White is okay.} Qa7+ 28. Kh2) 27... Qg7 $11 {[%emt 0:00:00]} (27... e4 $19 28. R3f2 Rxf2 29. Qxf2 Bxh3) 28. Nxf5 {[%emt 0:00:00]} gxf5 {[%emt 0:00:00]} 29. Rg3 {[%emt 0:00:00]} Qa7+ {[%emt 0:00:00]} 30. Kh1 {[%emt 0:00:00]} f4 {[%emt 0:00:00]} 31. Qh6 {[%emt 0:00:00]} Qf7 {[%emt 0:00:00]} 32. Rg4 {[%emt 0:00:00]} d5 {[%emt 0:00:00]} 33. Rg1 {[%emt 0:00:00]} Rb7 {[%emt 0:00:00]} 34. Bf1 {[%emt 0:00:00]} a5 {[%emt 0:00:00]} 35. Be2 {[%emt 0:00:00]} Rc7 {[%emt 0:00:00]} 36. R4g2 {[%emt 0:00:00]} Qe7 {[%emt 0:00:00]} 37. Bh5 {[%emt 0:00:00]} Rb8 {[%emt 0:02:11]} 38. Bg6 {[%emt 0:00:00]} f3 {[%emt 0:02:27]} 39. Rb2 {[%emt 0:00:00]} Rg8 {[%emt 0:03:13]} 40. Bf7 {[%emt 0:05:42]} Rxg1+ {[%emt 0:03:07]} 41. Kxg1 {[%emt 0:00:04]} Rd7 {[%emt 0:01:22]} 42. Rb8+ {[%emt 0:04:41]} Rd8 {[%emt 0:00:08]} 43. Rb7 {[%emt 0:00:58]} Qc5+ {[%emt 0:01:20]} 44. Kh1 {[%emt 0:00:33]} Qc6 {[%emt 0:00:39]} 45. Be8 {[%emt 0:00:38]} Qxb7 {[%emt 0:00:32]} 46. Qf8# {[%emt 0:00:06]} 1-0

[Event "FIDE World Cup O10-B 2024"]
[Site "Batumi"]
[Date "2024.06.24"]
[Round "2.4"]
[White "Yu, Zechen"]
[Black "Kvaratskhelia, Giorgi"]
[Result "1-0"]
[ECO "C45"]
[WhiteElo "1889"]
[BlackElo "1548"]
[Annotator "NA RC"]
[PlyCount "65"]
[EventDate "2024.06.23"]
[EventType "swiss"]
[EventCountry "GEO"]
[SourceTitle "playchess.com"]
[Source "ChessBase"]
[SourceQuality "1"]
[TimeControl "5400+30"]

1. e4 {[%emt 0:00:08]} e5 {[%emt 0:00:05]} 2. Nf3 {[%emt 0:00:08]} Nc6 {[%emt 0:00:07]} 3. d4 {[%emt 0:00:09]} exd4 {[%emt 0:00:05]} 4. Nxd4 {[%emt 0:00:07]} Bc5 {[%emt 0:00:05]} 5. Be3 {[%emt 0:00:07]} Qf6 {[%emt 0:00:05]} 6. c3 {[%emt 0:00:05]} Nge7 {[%emt 0:00:20]} 7. Bb5 {[%emt 0:00:13]} a6 {[%emt 0:01:42]} 8. Ba4 {[%emt 0:00:16] C45: Scotch Game.} b5 {[%emt 0:00:42]} 9. Bc2 {[%emt 0:00:07]} d6 {[%emt 0:01:49]} 10. O-O {[%emt 0:00:52]} Ne5 {[%emt 0:00:27]} 11. a4 {[%emt 0:20:10]} Qg6 {[%emt 0:05:05]} 12. Kh1 {[%emt 0:02:56]} b4 {[%emt 0:04:21]} 13. Qe1 {[%emt 0:24:51]} bxc3 {[%emt 0:07:57]} 14. Qxc3 {[%emt 0:02:46]} Rb8 {[%emt 0:10:20] [#]} 15. Nf5 $1 {[%emt 0:01:32]} Nxf5 {[%emt 0:04:28]} 16. exf5 {[%emt 0:01:28]} Bxf5 {[%emt 0:00:18]} 17. Bxf5 {[%emt 0:00:41]} Qxf5 {[%emt 0:00:07]} 18. Bxc5 {[%emt 0:00:05]} dxc5 {[%emt 0:00:08]} 19. Qxc5 {[%emt 0:00:55]} Rxb2 $2 {[%emt 0:02:47]} (19... f6 $16) 20. Nc3 $1 {[%emt 0:07:15]} f6 {[%emt 0:07:29]} 21. Nd5 {[%emt 0:01:45]} ({And not} 21. Qxc7 O-O $11) 21... Qd7 {[%emt 0:03:45]} 22. Rad1 $18 {[%emt 0:01:57]} ({Not} 22. Nxc7+ Kf7 $16) 22... Kf7 {[%emt 0:00:45]} 23. Nxf6 {[%emt 0:03:08]} Qe7 {[%emt 0:01:21]} 24. Qc3 {[%emt 0:00:17]} Rb7 {[%emt 0:02:15]} 25. f4 {[%emt 0:02:10]} gxf6 {[%emt 0:01:50]} 26. fxe5 {[%emt 0:00:18]} Rb6 {[%emt 0:00:14]} 27. exf6 {[%emt 0:00:22]} Rxf6 {[%emt 0:00:06]} 28. Rxf6+ {[%emt 0:01:26]} Qxf6 {[%emt 0:00:06]} 29. Qxc7+ {[%emt 0:00:21]} Ke8 {[%emt 0:00:41]} 30. Kg1 {[%emt 0:00:45]} h6 {[%emt 0:02:23]} 31. Qd7+ {[%emt 0:00:21]} Kf8 {[%emt 0:00:48]} 32. Rf1 {[%emt 0:00:14]} Rg8 {[%emt 0:00:17]} 33. Rxf6# {[%emt 0:00:07]} 1-0

[Event "FIDE World Cup O10-B 2024"]
[Site "Batumi"]
[Date "2024.06.24"]
[Round "2.5"]
[White "Akramov, Khusan"]
[Black "Ling, Chenxuan"]
[Result "0-1"]
[ECO "A23"]
[WhiteElo "1477"]
[BlackElo "1868"]
[Annotator "NA RC"]
[PlyCount "116"]
[EventDate "2024.06.23"]
[EventType "swiss"]
[EventCountry "GEO"]
[SourceTitle "playchess.com"]
[Source "ChessBase"]
[SourceQuality "1"]
[TimeControl "5400+30"]

1. c4 {[%emt 0:00:02]} e5 {[%emt 0:01:21]} 2. g3 {[%emt 0:00:08]} Nf6 {[%emt 0:00:36]} 3. Bg2 {[%emt 0:00:07]} Bc5 {[%emt 0:00:26]} 4. Nc3 {[%emt 0:00:02]} c6 {[%emt 0:00:07]} 5. e3 {[%emt 0:00:31]} Bb6 {[%emt 0:00:08]} 6. Nge2 {[%emt 0:00:21] A23: English Opening: 1...e5 2 Nc3 Nf6 3 g3 c6.} d5 {[%emt 0:02:10]} 7. cxd5 {[%emt 0:01:18]} cxd5 {[%emt 0:00:03]} 8. d4 {[%emt 0:00:22]} e4 {[%emt 0:00:36]} 9. O-O {[%emt 0:00:16]} O-O {[%emt 0:00:11]} 10. Nf4 {[%emt 0:00:08]} Nc6 {[%emt 0:01:21]} 11. a3 {[%emt 0:00:19]} Bg4 {[%emt 0:02:19]} 12. f3 {[%emt 0:00:36]} exf3 {[%emt 0:03:51]} 13. Bxf3 {[%emt 0:00:08]} Bxf3 {[%emt 0:00:50]} 14. Qxf3 {[%emt 0:00:25]} Ne7 {[%emt 0:00:03]} 15. g4 {[%emt 0:02:19]} h6 {[%emt 0:12:37]} 16. Bd2 {[%emt 0:02:26]} Qd7 {[%emt 0:00:50]} 17. h3 {[%emt 0:01:29]} Rad8 {[%emt 0:03:02]} 18. Rf2 {[%emt 0:00:48]} Ng6 {[%emt 0:07:26]} 19. Raf1 {[%emt 0:03:36]} Nxf4 {[%emt 0:07:14]} 20. Qxf4 {[%emt 0:00:08]} Bc7 {[%emt 0:00:10]} 21. Qf3 {[%emt 0:02:13]} a6 {[%emt 0:05:28]} 22. Rg2 {[%emt 0:00:59]} Qd6 {[%emt 0:02:13]} 23. Rff2 {[%emt 0:02:03]} Nh7 {[%emt 0:01:04]} 24. h4 {[%emt 0:03:30]} f6 {[%emt 0:01:59]} 25. Ne2 {[%emt 0:01:13]} Qb6 {[%emt 0:01:17]} 26. Ng3 {[%emt 0:04:45]} Bxg3 {[%emt 0:02:45]} 27. Qxg3 {[%emt 0:00:23]} Qe6 {[%emt 0:01:06]} 28. Qf4 {[%emt 0:08:26]} Rfe8 {[%emt 0:01:47]} 29. Qf5 {[%emt 0:01:25]} Qxf5 {[%emt 0:01:00]} 30. gxf5 {[%emt 0:00:26]} Re4 {[%emt 0:02:13]} 31. Rh2 {[%emt 0:01:50]} Rc8 {[%emt 0:00:21]} 32. Rf4 {[%emt 0:05:19]} Ree8 {[%emt 0:05:03]} 33. Rf3 $11 {[%emt 0:01:10]} Rc2 {[%emt 0:00:49]} 34. Bc3 {[%emt 0:00:58]} Rc1+ {[%emt 0:00:07]} 35. Kg2 {[%emt 0:00:29]} Re4 {[%emt 0:00:36]} 36. Rf2 {[%emt 0:20:26]} Nf8 {[%emt 0:00:51]} 37. Kf3 {[%emt 0:04:07]} Nd7 {[%emt 0:00:34]} 38. h5 {[%emt 0:07:55]} Nb6 {[%emt 0:00:40]} 39. Rc2 {[%emt 0:01:31]} Rf1+ {[%emt 0:00:47]} 40. Rcf2 {[%emt 0:00:15]} Rxf2+ {[%emt 0:00:30]} 41. Rxf2 {[%emt 0:26:08]} Nc4 {[%emt 0:00:26]} 42. Re2 {[%emt 0:00:00]} Nd6 {[%emt 0:00:07]} 43. Rc2 {[%emt 0:00:00]} Nxf5 {[%emt 0:00:10]} 44. Bd2 {[%emt 0:00:00]} Re7 {[%emt 0:00:06]} 45. Rc8+ {[%emt 0:00:00]} Kf7 {[%emt 0:00:11]} 46. Kf2 {[%emt 0:00:00]} Nd6 {[%emt 0:00:22]} 47. Rd8 {[%emt 0:00:00]} Ne4+ {[%emt 0:00:18]} 48. Ke1 {[%emt 0:00:00]} Nxd2 {[%emt 0:00:47]} 49. Kxd2 {[%emt 0:00:00]} Ke6 {[%emt 0:00:05]} 50. Ke2 {[%emt 0:00:00]} Rd7 {[%emt 0:00:13]} 51. Re8+ {[%emt 0:00:00]} Kf5 {[%emt 0:00:22]} 52. Kf3 {[%emt 0:00:00]} Kg5 {[%emt 0:00:14]} 53. e4 {[%emt 0:00:00]} Kxh5 {[%emt 0:01:20]} 54. e5 {[%emt 0:00:00]} fxe5 {[%emt 0:00:15]} 55. dxe5 {[%emt 0:00:00]} Kg6 {[%emt 0:00:08]} 56. Kf4 {[%emt 0:00:00]} Kf7 {[%emt 0:00:22]} 57. Rc8 {[%emt 0:00:00]} Ke6 {[%emt 0:00:02]} 58. Re8+ {[%emt 0:00:00]} Re7 {[%emt 0:00:03]} 0-1

[Event "FIDE World Cup O10-B 2024"]
[Site "Batumi"]
[Date "2024.06.24"]
[Round "2.6"]
[White "Azimov, Yasin"]
[Black "Bergmann, Rafael Antonio"]
[Result "1-0"]
[ECO "C90"]
[WhiteElo "1833"]
[BlackElo "1743"]
[Annotator "NA RC"]
[PlyCount "37"]
[EventDate "2024.06.23"]
[EventType "swiss"]
[EventCountry "GEO"]
[SourceTitle "playchess.com"]
[Source "ChessBase"]
[SourceQuality "1"]
[TimeControl "5400+30"]

1. e4 {[%emt 0:00:06]} e5 {[%emt 0:00:07]} 2. Nf3 {[%emt 0:00:13]} Nc6 {[%emt 0:00:05]} 3. Bb5 {[%emt 0:00:11]} a6 {[%emt 0:00:05]} 4. Ba4 {[%emt 0:00:15]} Nf6 {[%emt 0:00:05]} 5. O-O {[%emt 0:00:27]} Be7 {[%emt 0:00:11]} 6. d3 {[%emt 0:00:18]} b5 {[%emt 0:00:16]} 7. Bb3 {[%emt 0:00:09]} O-O {[%emt 0:00:11]} 8. c3 {[%emt 0:00:49]} d6 {[%emt 0:00:45]} 9. Re1 {[%emt 0:01:20]} Na5 {[%emt 0:01:37]} 10. Bc2 {[%emt 0:01:27]} c5 {[%emt 0:00:28]} 11. d4 {[%emt 0:00:52]} cxd4 {[%emt 0:00:15]} 12. cxd4 {[%emt 0:00:13]} Nc6 {[%emt 0:00:40]} 13. h3 {[%emt 0:04:32]} Nb4 {[%emt 0:09:19]} 14. Bb3 {[%emt 0:01:46]} Nc6 {[%emt 0:03:59]} 15. Nc3 {[%emt 0:02:57]} Qb6 {[%emt 0:08:23]} 16. Be3 {[%emt 0:00:56]} Qc7 {[%emt 0:00:34]} 17. Rc1 {[%emt 0:01:09]} Qd7 {[%emt 0:02:08]} 18. Nd5 {[%emt 0:04:29]} Qb7 {[%emt 0:06:02]} 19. Rxc6 {[%emt 1:17:51]} 1-0

[Event "FIDE World Cup O10-B 2024"]
[Site "Batumi"]
[Date "2024.06.24"]
[Round "2.7"]
[White "Karthik, Anand T."]
[Black "Zabelin, Platon"]
[Result "0-1"]
[ECO "B18"]
[WhiteElo "2022"]
[BlackElo "1799"]
[Annotator "NA RC"]
[PlyCount "104"]
[EventDate "2024.06.23"]
[EventType "swiss"]
[EventCountry "GEO"]
[SourceTitle "playchess.com"]
[Source "ChessBase"]
[SourceQuality "1"]
[TimeControl "5400+30"]

1. e4 {[%emt 0:00:21]} c6 {[%emt 0:02:53]} 2. d4 {[%emt 0:00:08]} d5 {[%emt 0:00:10]} 3. Nc3 {[%emt 0:00:12]} dxe4 {[%emt 0:00:09]} 4. Nxe4 {[%emt 0:00:05]} Bf5 {[%emt 0:00:07]} 5. Ng3 {[%emt 0:00:09]} Bg6 {[%emt 0:00:05]} 6. Nh3 {[%emt 0:00:06]} e6 {[%emt 0:00:11]} 7. Nf4 {[%emt 0:00:43]} Bd6 {[%emt 0:00:14]} 8. h4 {[%emt 0:00:41]} Qc7 {[%emt 0:00:36]} 9. Nxg6 {[%emt 0:03:08]} hxg6 {[%emt 0:00:08]} 10. Ne4 {[%emt 0:01:00] B18: Classical Caro-Kann: 4...Bf5 sidelines.} Bf4 {[%emt 0:00:12]} 11. Bd3 {[%emt 0:07:31]} Bxc1 {[%emt 0:01:18]} 12. Qxc1 {[%emt 0:02:53]} Nd7 {[%emt 0:00:19]} 13. Qd2 {[%emt 0:02:48]} Ngf6 {[%emt 0:03:13]} 14. Ng5 {[%emt 0:02:38]} Nb6 {[%emt 0:08:00]} 15. O-O-O {[%emt 0:02:46]} O-O-O {[%emt 0:00:33]} 16. c3 {[%emt 0:01:18]} Rd7 {[%emt 0:03:31]} 17. Kb1 {[%emt 0:05:22]} Rhd8 {[%emt 0:00:50]} (17... e5 $11) 18. Qc2 {[%emt 1:07:41]} Kb8 {[%emt 1:17:01] [#]} 19. Nf3 {[%emt 0:00:00]} (19. Bxg6 $1 $16 fxg6 20. Nxe6) 19... c5 {[%emt 0:00:00]} 20. Ne5 {[%emt 0:00:00]} Rd5 {[%emt 0:00:00]} 21. dxc5 {[%emt 0:00:00]} Rxc5 {[%emt 0:00:00]} 22. Nf3 $1 {[%emt 0:00:00]} Nbd5 {[%emt 0:00:00]} 23. Bf1 $2 {[%emt 0:00:00] [#]} (23. Rhe1 $11 {and White has nothing to worry.}) 23... Rxc3 $1 {[%emt 0:00:00]} 24. Qe2 {[%emt 0:03:00]} (24. bxc3 $2 {too greedy.} Nxc3+ 25. Kb2 (25. Qxc3 $2 Rxd1+ 26. Kb2 Rb1+ 27. Kxb1 Qxc3 $19) 25... Rxd1 $19 (25... Nxd1+ $2 26. Kc1 $19 (26. Kb1 $19))) 24... Rc6 {[%emt 0:03:00]} 25. g3 {[%emt 0:00:00]} Rb6 {[%emt 0:00:00]} 26. Ka1 {[%emt 0:01:00]} Rc8 {[%emt 0:00:00]} 27. Qe5 {[%emt 0:00:30]} Ng4 {[%emt 0:01:30]} 28. Qxc7+ {[%emt 0:00:00]} Rxc7 {[%emt 0:00:00]} 29. Rb1 {[%emt 0:01:00]} Nxf2 {[%emt 0:01:00]} 30. Rh2 {[%emt 0:00:00]} Ne4 {[%emt 0:00:00]} 31. g4 {[%emt 0:00:00]} Ne3 {[%emt 0:00:00]} 32. Bd3 {[%emt 0:00:00]} Nc5 {[%emt 0:00:00]} 33. Re2 {[%emt 0:00:00]} Nxd3 {[%emt 0:00:00]} 34. Rxe3 {[%emt 0:00:00]} Nxb2 {[%emt 0:00:00]} 35. Rb3 {[%emt 0:00:00]} Nc4 {[%emt 0:03:00]} 36. Rxb6 {[%emt 0:00:00]} Nxb6 {[%emt 0:00:00]} 37. Ng5 {[%emt 0:00:00]} Re7 {[%emt 0:00:00]} 38. h5 {[%emt 0:00:00]} gxh5 {[%emt 0:00:00]} 39. gxh5 {[%emt 0:00:00]} e5 $19 {[%emt 0:00:00]} 40. Rf1 {[%emt 0:00:00]} f6 {[%emt 0:00:00]} 41. Ne4 {[%emt 0:00:00]} Nd5 {[%emt 0:00:00]} 42. Rh1 {[%emt 0:06:30]} f5 {[%emt 0:00:00]} 43. Nd6 {[%emt 0:00:00]} f4 {[%emt 0:00:00]} 44. Ne4 {[%emt 0:00:00]} f3 {[%emt 0:00:00]} 45. Rf1 {[%emt 0:00:00]} Rf7 {[%emt 0:00:00]} 46. Nf2 {[%emt 0:00:00]} Nf6 {[%emt 0:00:00]} 47. Nd1 {[%emt 0:00:00]} Nxh5 {[%emt 0:00:00]} 48. Ne3 {[%emt 0:00:00]} Ng3 {[%emt 0:00:00]} 49. Rg1 {[%emt 0:00:00]} Nf5 {[%emt 0:00:00]} 50. Ng4 {[%emt 0:00:00]} e4 {[%emt 0:00:00]} 51. Re1 {[%emt 0:00:00]} e3 {[%emt 0:00:00]} 52. Ne5 {[%emt 0:00:00]} f2 {[%emt 0:00:00]} 0-1

[Event "FIDE World Cup O10-B 2024"]
[Site "Batumi"]
[Date "2024.06.24"]
[Round "2.8"]
[White "Makhsatuly, Rakhim"]
[Black "Shen, Houlin"]
[Result "0-1"]
[ECO "B66"]
[WhiteElo "1630"]
[BlackElo "1583"]
[Annotator "NA RC"]
[PlyCount "72"]
[EventDate "2024.06.23"]
[EventType "swiss"]
[EventCountry "GEO"]
[SourceTitle "playchess.com"]
[Source "ChessBase"]
[SourceQuality "1"]
[TimeControl "5400+30"]

1. e4 {[%emt 0:00:02]} c5 {[%emt 0:00:05]} 2. Nf3 {[%emt 0:00:04]} Nc6 {[%emt 0:00:03]} 3. d4 {[%emt 0:00:07]} cxd4 {[%emt 0:02:21]} 4. Nxd4 {[%emt 0:00:16]} Nf6 {[%emt 0:00:01]} 5. Nc3 {[%emt 0:00:08]} d6 {[%emt 0:00:04]} 6. Bg5 {[%emt 0:00:05]} e6 {[%emt 0:03:05]} 7. Qd2 {[%emt 0:00:14]} a6 {[%emt 0:00:05]} 8. Nxc6 {[%emt 0:04:39]} bxc6 {[%emt 0:00:08]} 9. Bc4 {[%emt 0:00:44]} Be7 {[%emt 0:04:42]} 10. O-O-O {[%emt 0:02:59]} d5 {[%emt 0:02:41]} 11. exd5 {[%emt 0:06:55]} cxd5 {[%emt 0:01:39]} 12. Bxf6 {[%emt 0:04:29]} Bxf6 {[%emt 0:01:10]} 13. Nxd5 {[%emt 0:01:39]} exd5 {[%emt 0:01:48]} 14. Bxd5 {[%emt 0:00:02]} Qb6 {[%emt 0:05:03]} 15. c3 {[%emt 0:04:44]} Ra7 {[%emt 0:03:08]} 16. Rhe1+ {[%emt 0:00:21]} Be6 {[%emt 0:00:38]} 17. Bxe6 {[%emt 0:11:23]} fxe6 {[%emt 0:00:19]} 18. Qd6 {[%emt 0:08:31]} Qxd6 {[%emt 0:02:17]} 19. Rxd6 {[%emt 0:00:02]} Bg5+ {[%emt 0:04:13]} 20. Kc2 {[%emt 0:01:51]} O-O {[%emt 0:01:56]} 21. f3 {[%emt 0:00:04]} e5 {[%emt 0:00:56]} 22. b4 {[%emt 0:00:37]} Rc8 {[%emt 0:03:03]} 23. Kb3 {[%emt 0:00:31]} a5 {[%emt 0:24:19]} 24. a4 {[%emt 0:03:58]} Rac7 {[%emt 0:05:56]} 25. Rd3 {[%emt 0:00:39]} Bf6 {[%emt 0:03:30]} 26. b5 {[%emt 0:01:36]} e4 {[%emt 0:05:16]} 27. Rxe4 {[%emt 0:11:14]} Rxc3+ {[%emt 0:01:56]} 28. Rxc3 {[%emt 0:00:44]} Rxc3+ {[%emt 0:00:28]} 29. Ka2 {[%emt 0:00:02]} Rc2+ {[%emt 0:00:27]} 30. Kb3 {[%emt 0:01:29]} Rxg2 {[%emt 0:00:21]} 31. Kc4 {[%emt 0:01:45]} Rb2 {[%emt 0:00:48]} 32. Kc5 {[%emt 0:00:29]} Kf7 {[%emt 0:00:43]} 33. Kc6 {[%emt 0:00:37]} Rb4 {[%emt 0:02:30]} 34. Kd6 {[%emt 0:03:57]} g5 {[%emt 0:05:46]} 35. Rxb4 {[%emt 0:11:05]} axb4 {[%emt 0:00:36]} 36. b6 {[%emt 0:00:04]} Bd4 {[%emt 0:00:25]} 0-1

[Event "FIDE World Cup O10-B 2024"]
[Site "Batumi"]
[Date "2024.06.24"]
[Round "2.9"]
[White "Muhammad Shayan Noushad Ibrahi"]
[Black "Kiringoda, Thehas Rithmitha"]
[Result "1-0"]
[ECO "B22"]
[WhiteElo "1785"]
[BlackElo "1641"]
[Annotator "NA RC"]
[PlyCount "121"]
[EventDate "2024.06.23"]
[EventType "swiss"]
[EventCountry "GEO"]
[SourceTitle "playchess.com"]
[Source "ChessBase"]
[SourceQuality "1"]
[TimeControl "5400+30"]

1. e4 {[%emt 0:01:17]} c5 {[%emt 0:00:30]} 2. Nf3 {[%emt 0:01:27]} Nc6 {[%emt 0:04:03]} 3. c3 {[%emt 0:01:42]} d5 {[%emt 0:00:51]} 4. exd5 {[%emt 0:01:29]} Qxd5 {[%emt 0:00:21]} 5. d4 {[%emt 0:02:54]} Bg4 {[%emt 0:01:42]} 6. Be2 {[%emt 0:04:36]} e6 {[%emt 0:01:55]} 7. O-O {[%emt 0:01:50]} Nf6 {[%emt 0:03:36]} 8. Be3 {[%emt 0:05:06]} cxd4 {[%emt 0:06:57]} 9. cxd4 {[%emt 0:07:04]} Be7 {[%emt 0:01:13]} 10. Nc3 {[%emt 0:05:30]} Qd8 {[%emt 0:00:42]} 11. Qb3 {[%emt 0:01:34]} Qc8 {[%emt 0:13:31]} 12. Rac1 {[%emt 0:09:12]} Bd6 {[%emt 0:22:12]} 13. Rfd1 {[%emt 0:05:38]} O-O {[%emt 0:39:27]} 14. Bg5 {[%emt 0:48:11]} Nh5 {[%emt 0:00:30]} 15. d5 {[%emt 0:00:00]} exd5 {[%emt 0:00:00]} 16. Nxd5 {[%emt 0:01:00]} h6 {[%emt 0:00:00]} 17. Be7 {[%emt 0:00:00]} Re8 {[%emt 0:00:00]} 18. Bxd6 {[%emt 0:00:00]} Rxe2 {[%emt 0:00:00]} 19. Ne7+ {[%emt 0:00:00]} Rxe7 {[%emt 0:00:00]} 20. Bxe7 {[%emt 0:00:00]} Nf4 {[%emt 0:00:00]} 21. Qe3 {[%emt 0:02:30]} Qf5 {[%emt 0:00:00]} 22. Rc5 {[%emt 0:00:30]} Nh3+ {[%emt 0:04:00]} 23. Kh1 {[%emt 0:00:00]} Qe6 {[%emt 0:00:00]} 24. Qxe6 {[%emt 0:00:00]} fxe6 {[%emt 0:00:00]} 25. Bh4 {[%emt 0:01:30]} Nf4 {[%emt 0:00:00]} 26. Bg3 {[%emt 0:00:00]} Nd5 {[%emt 0:00:00]} 27. h3 {[%emt 0:00:00]} Bh5 {[%emt 0:02:30]} 28. Rd3 {[%emt 0:00:00]} Rf8 {[%emt 0:00:30]} 29. Kg1 {[%emt 0:00:00]} Bxf3 {[%emt 0:00:00]} 30. Rxf3 {[%emt 0:00:00]} Rd8 {[%emt 0:00:00]} 31. Rd3 {[%emt 0:00:00]} Kf7 {[%emt 0:00:00]} 32. a3 {[%emt 0:00:00]} a5 {[%emt 0:00:00]} 33. f4 {[%emt 0:04:00]} g6 {[%emt 0:02:30]} 34. Rb3 {[%emt 0:00:00]} Rd7 {[%emt 0:00:30]} 35. Rd3 {[%emt 0:01:00]} Rd8 {[%emt 0:00:00]} 36. h4 {[%emt 0:00:00]} h5 {[%emt 0:00:00]} 37. Be1 {[%emt 0:00:00]} Ra8 {[%emt 0:00:00]} 38. Rb3 {[%emt 0:01:30]} Nce7 {[%emt 0:00:00]} 39. Rxb7 {[%emt 0:00:00]} a4 {[%emt 0:00:00]} 40. g3 {[%emt 0:00:00]} Ra6 {[%emt 0:00:00]} 41. Bf2 {[%emt 0:01:30]} Kf6 {[%emt 0:03:30]} 42. Bd4+ {[%emt 0:00:00]} Kf7 {[%emt 0:00:30]} 43. Rc4 {[%emt 0:00:00]} Ke8 {[%emt 0:00:00]} 44. Ra7 {[%emt 0:00:00]} Rd6 {[%emt 0:01:00]} 45. Raxa4 {[%emt 0:02:00]} Rd8 {[%emt 0:00:00]} 46. Ra7 {[%emt 0:00:00]} Nf5 {[%emt 0:00:00]} 47. Bf2 {[%emt 0:00:00]} Nf6 {[%emt 0:00:00]} 48. Rc6 {[%emt 0:01:30]} Ng4 {[%emt 0:00:00]} 49. Rxe6+ {[%emt 0:00:00]} Kf8 {[%emt 0:00:00]} 50. Bc5+ {[%emt 0:00:00]} Kg8 {[%emt 0:00:00]} 51. Rxg6+ {[%emt 0:00:00]} Kh8 {[%emt 0:00:00]} 52. Bb4 {[%emt 0:00:00]} Rd1+ {[%emt 0:00:00]} 53. Kg2 {[%emt 0:00:00]} Nd4 {[%emt 0:02:53]} 54. Re7 {[%emt 0:00:00]} Rc1 {[%emt 0:00:45]} 55. Bc3 {[%emt 0:00:00]} Rc2+ {[%emt 0:00:26]} 56. Kg1 {[%emt 0:00:00]} Rc1+ {[%emt 0:00:17]} 57. Re1 {[%emt 0:00:00]} Kh7 {[%emt 0:01:25]} 58. Rxc1 {[%emt 0:00:00]} Ne2+ {[%emt 0:01:14]} 59. Kf1 {[%emt 0:00:00]} Nxc1 {[%emt 0:00:30]} 60. Rg5 {[%emt 0:00:14]} Kh6 {[%emt 0:00:00]} 61. Bg7+ {[%emt 0:06:16]} 1-0